bitfinex/quotes_BTCUSD_20250716
["timestamp","ask_amount","ask_price","bid_price","bid_amount"]
[1752632089035,0.03802057,117640.0,117630.0,0.71350562]
[1752632090736,0.20803077,117640.0,117630.0,0.71342562]
[1752632091692,0.55521129,117640.0,117630.0,0.71342562]
[1752632093608,0.57181129,117640.0,117630.0,0.7049249]
[1752632093840,0.56532144,117640.0,117630.0,0.69642403]
[1752632094931,0.56532144,117640.0,117630.0,0.7049249]
[1752632095133,0.56532144,117640.0,117630.0,0.71342569]
[1752632095342,0.56532144,117640.0,117630.0,0.69642403]
[1752632096008,0.21814092,117640.0,117630.0,0.69642403]
[1752632096259,0.56532144,117640.0,117630.0,0.7049249]
[1752632096848,0.56532144,117640.0,117630.0,0.71342569]
[1752632098432,0.56532144,117640.0,117630.0,0.58162569]
[1752632098633,0.56532144,117640.0,117630.0,0.7048849]
[1752632098840,0.56532144,117640.0,117630.0,0.5731249]
[1752632099065,0.56532144,117640.0,117630.0,0.7048849]
[1752632099951,0.57382195,117640.0,117630.0,0.71338569]
[1752632100316,0.57382195,117640.0,117630.0,0.7048849]
[1752632100754,0.21814136,117640.0,117630.0,0.71338569]
[1752632100953,0.56532188,117640.0,117630.0,0.69638403]
[1752632101298,0.56532188,117640.0,117630.0,0.56462403]
[1752632101510,0.56532188,117640.0,117630.0,0.69634403]
[1752632102807,0.58192188,117640.0,117630.0,0.69634403]
[1752632102968,0.4951339,117640.0,117630.0,0.69634403]
[1752632103170,0.4950514,117640.0,117630.0,0.53786085]
[1752632103373,5.70598211,117640.0,117630.0,0.3054]
[1752632103855,6.04598211,117640.0,117630.0,0.3054]
[1752632103983,6.04598211,117640.0,117630.0,0.00275]
[1752632104180,6.13174173,117640.0,117630.0,0.00275]
[1752632104597,6.04598211,117640.0,117630.0,0.00275]
[1752632104992,0.1870425,117620.0,117610.0,0.13172]
[1752632105209,0.57344274,117620.0,117610.0,0.13177074]
[1752632106467,0.57344274,117620.0,117610.0,0.13377074]
[1752632106468,0.57444274,117620.0,117610.0,0.13377074]
[1752632107870,0.57444274,117620.0,117610.0,0.00205074]
[1752632108230,0.70612274,117620.0,117610.0,0.00205074]
[1752632108880,0.05200318,117620.0,117610.0,0.19974145]
[1752632109106,0.03540318,117620.0,117610.0,0.28185482]
[1752632109486,0.03540318,117620.0,117610.0,0.19974145]
[1752632110134,0.02650477,117620.0,117610.0,0.19974145]
[1752632110303,0.01800296,117620.0,117610.0,0.19974145]
[1752632110507,0.02650477,117620.0,117610.0,0.19974145]
[1752632110714,0.01800296,117620.0,117610.0,0.19974145]
[1752632110912,0.02650462,117620.0,117610.0,0.19974145]
[1752632111146,0.00950137,117620.0,117610.0,0.19974145]
[1752632111350,0.00950137,117620.0,117610.0,0.32144107]
[1752632111558,0.001,117620.0,117610.0,0.75433159]
[1752632112159,0.001,117620.0,117610.0,0.40695135]
[1752632113011,0.00950144,117620.0,117610.0,0.32119173]
[1752632113357,0.00950144,117620.0,117610.0,0.58789173]
[1752632113911,0.001,117620.0,117610.0,0.58789173]
[1752632114334,0.0095013,117620.0,117610.0,0.58789173]
[1752632114823,0.01800282,117620.0,117610.0,0.58789173]
[1752632115379,0.01800282,117620.0,117610.0,0.67365135]
[1752632115593,0.0095013,117620.0,117610.0,0.67365135]
[1752632115796,0.01800274,117620.0,117610.0,0.67365135]
[1752632116025,0.0095013,117620.0,117610.0,0.67365135]
[1752632116682,0.0095013,117620.0,117610.0,0.69105135]
[1752632116824,0.001,117620.0,117610.0,0.69105135]
[1752632117257,0.00950137,117620.0,117610.0,0.69105135]
[1752632117458,0.01800289,117620.0,117610.0,0.69105135]
[1752632118004,0.00950137,117620.0,117610.0,0.69105135]
[1752632118330,0.02650447,117620.0,117610.0,0.58789173]
[1752632119017,0.03500628,117620.0,117610.0,0.58789173]
[1752632119143,0.5693262,117620.0,117610.0,0.58465209]
[1752632119936,0.5693262,117620.0,117610.0,0.5931544]
[1752632120058,0.04340491,117620.0,117610.0,0.60165664]
[1752632120273,0.04340491,117620.0,117610.0,0.68259252]
[1752632120753,0.02650491,117620.0,117610.0,0.68259252]
[1752632121082,0.02650491,117620.0,117610.0,0.68583252]
[1752632121282,0.01800296,117620.0,117610.0,0.68583252]
[1752632121575,0.00950144,117620.0,117610.0,0.68583252]
[1752632121955,0.01800303,117620.0,117610.0,0.68583252]
[1752632122166,0.01800296,117620.0,117610.0,0.68583252]
[1752632123089,0.00950144,117620.0,117610.0,0.68583252]
[1752632124140,0.01800303,117620.0,117610.0,0.68583252]
[1752632124883,0.00950144,117620.0,117610.0,0.68583252]
[1752632125391,0.00950137,117620.0,117610.0,0.68583252]
[1752632125593,0.001,117620.0,117610.0,0.68583252]
[1752632125819,0.001,117620.0,117610.0,0.71793252]
[1752632126352,0.001,117620.0,117610.0,0.68583252]
[1752632127447,0.001,117620.0,117610.0,0.81743252]
[1752632128033,0.001,117620.0,117610.0,1.19871276]
[1752632128672,0.001,117620.0,117610.0,1.21325361]
[1752632132900,0.001,117620.0,117610.0,0.86587337]
[1752632133121,0.001,117620.0,117610.0,1.21325361]
[1752632134273,0.001,117620.0,117610.0,1.55325361]
[1752632134492,0.03652,117650.0,117640.0,0.02550065]
[1752632134735,0.0471592,117650.0,117640.0,0.64772352]
[1752632134964,0.04715913,117650.0,117640.0,0.64980352]
[1752632135409,0.05565841,117650.0,117640.0,0.64980352]
[1752632135663,0.0641579,117650.0,117640.0,0.64980352]
[1752632135891,0.05665841,117650.0,117640.0,0.65080352]
[1752632136085,0.06515783,117650.0,117640.0,0.65080352]
[1752632136736,0.05665841,117650.0,117640.0,0.65080352]
[1752632137204,0.05665833,117650.0,117640.0,0.65080352]
[1752632137621,0.04715913,117650.0,117640.0,0.64980352]
[1752632137831,0.04915913,117650.0,117640.0,0.65080352]
[1752632138045,0.0661579,117650.0,117640.0,0.65080352]
[1752632138722,0.05765841,117650.0,117640.0,0.65080352]
[1752632140043,0.06615783,117650.0,117640.0,0.65080352]
[1752632140295,0.05765841,117650.0,117640.0,0.65080352]
[1752632140503,0.06615783,117650.0,117640.0,0.65080352]
[1752632140711,0.002,117650.0,117640.0,0.65080352]
[1752632141010,0.002,117650.0,117640.0,1.10119489]
[1752632141260,0.002,117650.0,117640.0,0.75381465]
[1752632141737,0.002,117650.0,117640.0,1.13489489]
[1752632142159,0.05779379,117670.0,117660.0,0.19547761]
[1752632142401,0.05993379,117670.0,117660.0,0.45075379]
[1752632142611,0.06305379,117670.0,117660.0,0.45075379]
[1752632143132,0.05455574,117670.0,117660.0,0.45283379]
[1752632143269,0.05506182,117670.0,117660.0,0.45283379]
[1752632143669,0.06355987,117670.0,117660.0,0.45283379]
[1752632143888,0.08255633,117670.0,117660.0,0.45383379]
[1752632144082,0.59140566,117670.0,117660.0,0.43475647]
[1752632144287,0.58290776,117670.0,117660.0,0.45175423]
[1752632145118,0.58290776,117670.0,117660.0,0.460253]
[1752632145317,0.57440971,117670.0,117660.0,0.44325539]
[1752632145524,0.56591152,117670.0,117660.0,0.001]
[1752632145824,0.56591152,117670.0,117660.0,0.1709813]
[1752632146009,0.21853128,117670.0,117660.0,0.13248]
[1752632146189,0.55741325,117670.0,117660.0,0.13248]
[1752632149601,0.55741325,117670.0,117660.0,0.001]
[1752632149808,0.55741325,117670.0,117660.0,0.13248]
[1752632150011,0.55741325,117670.0,117660.0,0.03803444]
[1752632150219,0.55741325,117670.0,117660.0,0.16951444]
[1752632151065,0.55741325,117670.0,117660.0,0.13248]
[1752632151883,0.55741325,117670.0,117660.0,0.43188]
[1752632152711,0.55741325,117670.0,117660.0,0.3004]
[1752632152913,0.55741325,117670.0,117660.0,0.43184]
[1752632153449,0.55741325,117670.0,117660.0,0.3004]
[1752632154987,5.47283953,117670.0,117660.0,0.001]
[1752632155207,5.60427953,117670.0,117660.0,0.001]
[1752632156712,0.18699481,117650.0,117640.0,0.43084]
[1752632156920,0.57031505,117650.0,117640.0,0.43084]
[1752632157121,0.57343505,117650.0,117640.0,0.43084]
[1752632157571,0.70487505,117650.0,117640.0,0.2994]
[1752632158574,0.70487505,117650.0,117640.0,0.3044]
[1752632158780,0.70587505,117650.0,117640.0,0.3044]
[1752632159399,0.35849481,117650.0,117640.0,0.3044]
[1752632159606,0.70587505,117650.0,117640.0,0.3044]
[1752632159862,0.70587505,117650.0,117640.0,0.347984]
[1752632160281,0.70587505,117650.0,117640.0,0.3044]
[1752632160687,0.70587505,117650.0,117640.0,0.005]
[1752632161803,0.22179481,117650.0,117640.0,0.02404065]
[1752632162032,0.21319401,117650.0,117640.0,0.26269386]
[1752632162256,0.36537872,117650.0,117640.0,0.279694]
[1752632162472,0.00949928,117650.0,117640.0,0.34164984]
[1752632162853,0.02649834,117650.0,117640.0,0.282684]
[1752632163130,0.20499387,117650.0,117640.0,0.19405085]
[1752632163347,0.57440541,117650.0,117640.0,0.1750102]
[1752632163570,0.57440541,117650.0,117640.0,0.19201114]
[1752632163996,0.57440541,117650.0,117640.0,0.2005115]
[1752632164198,0.57440541,117650.0,117640.0,0.18351071]
[1752632165526,0.56590577,117650.0,117640.0,0.18351071]
[1752632165973,0.56590577,117650.0,117640.0,0.2337083]
[1752632166200,0.55740599,117650.0,117640.0,0.2357483]
[1752632166406,0.55740599,117650.0,117640.0,0.0657381]
[1752632166609,0.55740599,117650.0,117640.0,0.5351483]
[1752632166970,0.55740599,117650.0,117640.0,0.30644]
[1752632168576,0.21002575,117650.0,117640.0,0.3044]
[1752632168788,0.21002575,117650.0,117640.0,0.48291071]
[1752632169118,0.55740599,117650.0,117640.0,0.48291071]
[1752632169520,0.55740599,117650.0,117640.0,0.31290051]
[1752632169726,0.55740599,117650.0,117640.0,0.37773724]
[1752632170073,0.55740599,117650.0,117640.0,0.3044]
[1752632170190,0.55740599,117650.0,117640.0,0.43612]
[1752632172177,0.55740599,117650.0,117640.0,0.3044]
[1752632172361,0.55740599,117650.0,117640.0,0.4362]
[1752632172543,0.55740599,117650.0,117640.0,0.005]
[1752632172910,0.55740599,117650.0,117640.0,0.13688]
[1752632173862,0.68924599,117650.0,117640.0,0.005]
[1752632174068,5.86654223,117650.0,117640.0,0.005]
[1752632174269,5.51916199,117650.0,117640.0,0.005]
[1752632178332,5.95205251,117650.0,117640.0,0.005]
[1752632178739,1.46213651,117650.0,117640.0,0.005]
[1752632178951,5.95205251,117650.0,117640.0,0.005]
[1752632180934,6.03781213,117650.0,117640.0,0.005]
[1752632181323,0.90790684,117630.0,117620.0,0.2994]
[1752632181553,5.61732312,117630.0,117620.0,0.2994]
[1752632181728,5.62042312,117630.0,117620.0,0.2994]
[1752632182526,5.70618274,117630.0,117620.0,0.2994]
[1752632182726,0.55144091,117620.0,117610.0,0.06864301]
[1752632182930,5.52586715,117620.0,117610.0,0.06869375]
[1752632183191,1.12146143,117620.0,117610.0,5.074e-05]
[1752632183516,5.61137743,117620.0,117610.0,5.074e-05]
[1752632183962,5.61237743,117620.0,117610.0,0.00405074]
[1752632184631,5.62413729,117620.0,117610.0,0.00405074]
[1752632185955,5.62313729,117620.0,117610.0,5.074e-05]
[1752632186200,5.62413729,117620.0,117610.0,0.00105074]
[1752632186640,5.62313729,117620.0,117610.0,5.074e-05]
[1752632186848,5.97651753,117620.0,117610.0,5.074e-05]
[1752632187672,5.97051753,117620.0,117610.0,5.074e-05]
[1752632187872,5.63013729,117620.0,117610.0,5.074e-05]
[1752632188925,5.97751753,117620.0,117610.0,5.074e-05]
[1752632189845,5.63013729,117620.0,117610.0,5.074e-05]
[1752632191721,5.97751753,117620.0,117610.0,5.074e-05]
[1752632192560,5.13899719,117620.0,117610.0,5.074e-05]
[1752632192768,5.27115719,117620.0,117610.0,5.074e-05]
[1752632193009,5.61853743,117620.0,117610.0,5.074e-05]
[1752632194418,5.96591767,117620.0,117610.0,5.074e-05]
[1752632195869,5.61853743,117620.0,117610.0,5.074e-05]
[1752632196073,5.70429705,117620.0,117610.0,5.074e-05]
[1752632196274,1.21438105,117620.0,117610.0,5.074e-05]
[1752632196475,5.70429705,117620.0,117610.0,5.074e-05]
[1752632196788,5.61853743,117620.0,117610.0,5.074e-05]
[1752632212673,5.96591767,117620.0,117610.0,5.074e-05]
[1752632220346,5.61853743,117620.0,117610.0,5.074e-05]
[1752632220950,5.61837743,117620.0,117610.0,5.074e-05]
[1752632225006,5.58034743,117620.0,117610.0,0.00218074]
[1752632225214,5.58034743,117620.0,117610.0,0.00511074]
[1752632226467,5.58022743,117620.0,117610.0,0.00511074]
[1752632226699,5.36283715,117620.0,117610.0,0.03701074]
[1752632226888,5.15467715,117620.0,117610.0,0.03701074]
[1752632227095,5.49467715,117620.0,117610.0,0.03701074]
[1752632229478,5.58043677,117620.0,117610.0,0.00218074]
[1752632229702,5.24915653,117620.0,117610.0,0.00218074]
[1752632229923,5.23305653,117620.0,117610.0,0.00218074]
[1752632230142,5.58043677,117620.0,117610.0,0.00218074]
[1752632230357,5.49467715,117620.0,117610.0,0.00218074]
[1752632230578,5.49467715,117620.0,117610.0,0.03831074]
[1752632230785,5.15467715,117620.0,117610.0,0.03831074]
[1752632231464,5.15467715,117620.0,117610.0,0.01928074]
[1752632231667,5.15467715,117620.0,117610.0,0.00218074]
[1752632231905,5.24043677,117620.0,117610.0,0.00218074]
[1752632232325,5.15467715,117620.0,117610.0,0.00218074]
[1752632233361,5.15467715,117620.0,117610.0,5.074e-05]
[1752632233362,5.27827743,117620.0,117610.0,5.074e-05]
[1752632236200,4.93089719,117620.0,117610.0,5.074e-05]
[1752632236417,5.27827743,117620.0,117610.0,5.074e-05]
[1752632240557,5.26197743,117620.0,117610.0,5.074e-05]
[1752632240986,5.15467715,117620.0,117610.0,0.00511074]
[1752632241191,5.15467715,117620.0,117610.0,0.03831074]
[1752632242079,5.15467715,117620.0,117610.0,0.03538074]
[1752632242500,5.15467715,117620.0,117610.0,0.00218074]
[1752632243342,0.31738091,117620.0,117610.0,0.00218074]
[1752632243573,0.66476115,117620.0,117610.0,0.00218074]
[1752632243782,5.15467715,117620.0,117610.0,0.00218074]
[1752632244011,5.15467715,117620.0,117610.0,0.03538074]
[1752632244226,4.80729691,117620.0,117610.0,0.03538074]
[1752632244437,5.02283715,117620.0,117610.0,0.03831074]
[1752632245509,0.53292115,117620.0,117610.0,0.03831074]
[1752632245724,0.66700115,117620.0,117610.0,0.03831074]
[1752632246367,0.66700115,117620.0,117610.0,0.03538074]
[1752632247214,0.66700115,117620.0,117610.0,0.00218074]
[1752632247414,5.26475373,117620.0,117610.0,5.074e-05]
[1752632247624,0.18712204,117570.0,117560.0,0.03609]
[1752632247840,0.66894228,117570.0,117560.0,0.03822]
[1752632248914,0.66902822,117570.0,117560.0,0.22535825]
[1752632249157,0.66052302,117570.0,117560.0,0.03822]
[1752632249612,0.66268302,117570.0,117560.0,0.00219]
[1752632249841,5.15259902,117570.0,117560.0,0.00219]
[1752632250479,5.16093892,117570.0,117560.0,0.00219]
[1752632250694,4.9063183,117570.0,117560.0,0.00319]
[1752632250903,5.16793892,117570.0,117560.0,0.00319]
[1752632251114,5.16577892,117570.0,117560.0,0.00319]
[1752632251533,5.15877892,117570.0,117560.0,0.00219]
[1752632251941,5.16277892,117570.0,117560.0,0.00319]
[1752632252971,5.25372854,117570.0,117560.0,0.00319]
[1752632253375,5.27112854,117570.0,117560.0,0.00319]
[1752632254028,5.18536892,117570.0,117560.0,0.00319]
[1752632254872,4.81755868,117570.0,117560.0,0.00319]
[1752632255078,5.16493892,117570.0,117560.0,0.00319]
[1752632256278,5.18476892,117570.0,117560.0,0.00319]
[1752632256487,5.2875792,117570.0,117560.0,0.00106]
[1752632256665,5.37393882,117570.0,117560.0,0.00106]
[1752632258552,5.37389882,117570.0,117560.0,0.00106]
[1752632261166,6.06127906,117570.0,117560.0,0.00106]
[1752632261754,5.92627906,117570.0,117560.0,0.00106]
[1752632261958,6.06131906,117570.0,117560.0,0.00106]
[1752632262638,1.57140306,117570.0,117560.0,0.00106]
[1752632262884,6.06131906,117570.0,117560.0,0.00106]
[1752632263471,6.07585991,117570.0,117560.0,1e-08]
[1752632263598,5.23151858,117570.0,117560.0,1e-08]
[1752632263824,0.18715388,117550.0,117540.0,0.17035484]
[1752632264021,0.00850643,117550.0,117540.0,0.29523296]
[1752632264386,1.17480441,117550.0,117540.0,0.17035484]
[1752632264635,5.19742041,117550.0,117540.0,0.17035484]
[1752632264835,0.67480441,117550.0,117540.0,0.17035484]
[1752632265040,0.51751908,117560.0,117550.0,0.17014036]
[1752632265041,0.54302398,117560.0,117550.0,0.17014036]
[1752632265261,4.99785402,117560.0,117550.0,0.21736723]
[1752632265453,4.99785402,117560.0,117550.0,0.20886036]
[1752632265683,5.17648605,117560.0,117550.0,0.2173673]
[1752632265894,5.17648605,117560.0,117540.0,0.30114387]
[1752632265895,0.17014036,117550.0,117540.0,0.2389906]
[1752632266009,5.01594361,117550.0,117540.0,0.2410306]
[1752632266231,0.52818761,117550.0,117540.0,0.00224]
[1752632266446,0.66621761,117550.0,117540.0,0.00224]
[1752632266851,0.68281761,117550.0,117540.0,0.17239484]
[1752632267493,0.67472441,117550.0,117540.0,0.17239484]
[1752632267922,0.66953441,117550.0,117540.0,0.1809025]
[1752632268147,0.16043974,117550.0,117540.0,0.24380491]
[1752632268339,0.50981998,117550.0,117540.0,0.24380491]
[1752632268655,0.51832699,117550.0,117540.0,0.22679009]
[1752632269396,0.76616667,117550.0,117540.0,0.17547484]
[1752632269632,0.75758031,117550.0,117540.0,0.17239484]
[1752632269854,0.41020007,117550.0,117540.0,0.17239484]
[1752632270067,0.75758031,117550.0,117540.0,0.17239484]
[1752632270597,0.67988099,117550.0,117540.0,0.17239484]
[1752632271001,0.32615417,117550.0,117540.0,0.17239484]
[1752632271431,0.67353441,117550.0,117540.0,0.17239484]
[1752632271652,0.67353441,117550.0,117540.0,0.1809025]
[1752632271829,0.50973998,117550.0,117540.0,0.22579009]
[1752632272283,0.51824699,117550.0,117540.0,0.22579009]
[1752632272464,0.51824699,117550.0,117540.0,0.18941024]
[1752632272670,0.50973998,117550.0,117540.0,0.18941024]
[1752632272839,0.51824685,117550.0,117540.0,0.18941024]
[1752632273220,0.51848685,117550.0,117540.0,0.19791769]
[1752632273392,0.51848685,117550.0,117540.0,0.18941024]
[1752632273393,0.50997998,117550.0,117540.0,0.18941024]
[1752632273642,0.50997998,117550.0,117540.0,0.19791769]
[1752632274249,0.50997998,117550.0,117540.0,0.24120492]
[1752632274250,0.002,117550.0,117540.0,0.24120492]
[1752632274425,0.01050643,117550.0,117540.0,0.22419024]
[1752632274785,0.02751988,117550.0,117540.0,0.23269783]
[1752632275004,0.37490012,117550.0,117540.0,0.24120528]
[1752632275210,0.27587116,117550.0,117540.0,0.17239484]
[1752632275416,0.6232514,117550.0,117540.0,0.18090258]
[1752632275740,0.55354749,117550.0,117540.0,0.18090258]
[1752632275939,0.55354749,117550.0,117540.0,0.19791783]
[1752632276147,0.55354749,117550.0,117540.0,0.18090258]
[1752632276555,0.55354749,117550.0,117540.0,0.17239484]
[1752632276840,0.55354749,117550.0,117540.0,0.18090258]
[1752632277051,0.20616725,117550.0,117540.0,0.18941017]
[1752632277258,0.55354749,117550.0,117540.0,0.18941024]
[1752632277473,0.55354749,117550.0,117540.0,0.18090258]
[1752632277684,0.55354749,117550.0,117540.0,0.18941024]
[1752632277922,0.65736711,117550.0,117540.0,0.17239484]
[1752632278183,0.57432441,117550.0,117540.0,0.00224]
[1752632278606,0.57432441,117550.0,117540.0,0.0002]
[1752632279048,0.57432441,117550.0,117540.0,0.17035484]
[1752632279219,0.57432441,117550.0,117540.0,0.17239484]
[1752632279734,0.57129441,117550.0,117540.0,0.17239484]
[1752632280294,0.65705403,117550.0,117540.0,0.17239484]
[1752632280702,0.57432441,117550.0,117540.0,0.17239484]
[1752632280905,0.55762441,117550.0,117540.0,0.17239484]
[1752632282013,0.57472441,117550.0,117540.0,0.17239484]
[1752632282437,0.22734417,117550.0,117540.0,0.17239484]
[1752632282656,0.57472441,117550.0,117540.0,0.17239484]
[1752632282883,0.55762441,117550.0,117540.0,0.17239484]
[1752632283330,0.66058403,117550.0,117540.0,0.17239484]
[1752632283545,0.22744417,117550.0,117540.0,0.17239484]
[1752632283801,0.57482441,117550.0,117540.0,0.17239484]
[1752632286090,0.38009049,117550.0,117540.0,0.18941009]
[1752632286305,0.37706049,117550.0,117540.0,0.19791754]
[1752632286517,0.3855675,117550.0,117540.0,0.19791761]
[1752632286715,0.38556743,117550.0,117540.0,0.18941009]
[1752632286922,0.55570779,117550.0,117540.0,0.19791761]
[1752632287321,0.55570779,117550.0,117540.0,0.20642506]
[1752632287322,0.39407444,117550.0,117540.0,0.20642506]
[1752632287562,0.38556743,117550.0,117540.0,0.20642499]
[1752632287964,0.002,117550.0,117540.0,0.21493222]
[1752632288164,0.51901316,117550.0,117540.0,0.25054222]
[1752632288366,4.50892909,117550.0,117540.0,0.25054222]
[1752632288686,0.02751981,117550.0,117540.0,0.25054222]
[1752632289109,0.02751981,117550.0,117540.0,0.21804222]
[1752632289311,0.03602668,117550.0,117540.0,0.21804222]
[1752632289540,0.39191393,117550.0,117540.0,0.20953499]
[1752632289718,0.39191393,117550.0,117540.0,0.20642499]
[1752632289952,0.01901309,117550.0,117540.0,0.21804222]
[1752632290161,0.38340685,117550.0,117540.0,0.20102761]
[1752632290369,0.56205422,117550.0,117540.0,0.20642499]
[1752632290575,0.63284708,117550.0,117540.0,0.20642499]
[1752632291300,0.21467398,117550.0,117540.0,0.21493229]
[1752632291505,0.39191386,117550.0,117540.0,0.21493229]
[1752632291707,0.04453362,117550.0,117540.0,0.21493229]
[1752632291864,0.39191386,117550.0,117540.0,0.21493229]
[1752632292067,0.39191386,117550.0,117540.0,0.20642499]
[1752632292279,0.54159448,117550.0,117540.0,0.00224]
[1752632292460,0.54159448,117550.0,117540.0,0.13668]
[1752632292697,0.55909448,117550.0,117540.0,0.13668]
[1752632293078,0.55909448,117550.0,117540.0,0.13664]
[1752632293944,0.21171424,117550.0,117540.0,0.30679484]
[1752632294159,0.55909448,117550.0,117540.0,0.1809025]
[1752632294415,0.55909448,117550.0,117540.0,0.3153025]
[1752632294636,0.56688761,117550.0,117540.0,0.13664]
[1752632294762,0.21100036,117550.0,117540.0,0.31530258]
[1752632294967,0.5420806,117550.0,117540.0,0.00224]
[1752632295184,0.5583806,117550.0,117540.0,0.1366]
[1752632295541,0.5583806,117550.0,117540.0,0.13456]
[1752632295755,0.5583806,117550.0,117540.0,0.13452]
[1752632296426,5.0482966,117550.0,117540.0,0.13452]
[1752632296848,0.5583806,117550.0,117540.0,0.13448]
[1752632297057,5.0482966,117550.0,117540.0,0.13448]
[1752632297270,5.2195665,117550.0,117540.0,0.0002]
[1752632297915,4.87218626,117550.0,117540.0,0.0002]
[1752632298128,5.2195665,117550.0,117540.0,0.0002]
[1752632299004,4.70091636,117550.0,117540.0,0.0002]
[1752632299212,5.1824566,117550.0,117540.0,0.00219]
[1752632299646,5.1804566,117550.0,117540.0,0.0002]
[1752632300091,5.1814566,117550.0,117540.0,0.0012]
[1752632305243,5.0472966,117550.0,117540.0,0.0012]
[1752632305449,5.26721622,117550.0,117540.0,0.0012]
[1752632305621,5.1814566,117550.0,117540.0,0.0012]
[1752632308000,4.83407636,117550.0,117540.0,0.0012]
[1752632308207,5.1814566,117550.0,117540.0,0.0012]
[1752632309130,5.1813366,117550.0,117540.0,0.0012]
[1752632309962,4.66105636,117550.0,117540.0,0.00336]
[1752632310170,0.17114036,117550.0,117540.0,0.00647]
[1752632310580,0.17114036,117550.0,117540.0,0.18513258]
[1752632310782,0.17114036,117550.0,117540.0,0.19364024]
[1752632311197,0.5185206,117550.0,117540.0,0.19364024]
[1752632311666,0.1796473,117550.0,117540.0,0.23614783]
[1752632312233,0.02651944,117550.0,117540.0,0.79274721]
[1752632312436,0.00950636,117550.0,117540.0,0.79274721]
[1752632312666,0.00950636,117550.0,117540.0,0.38708251]
[1752632312822,0.001,117550.0,117540.0,0.38708251]
[1752632313667,0.00850651,117550.0,117540.0,0.38608251]
[1752632313886,0.00850586,117560.0,117550.0,0.22926053]
[1752632314112,0.02551793,117560.0,117550.0,0.23992696]
[1752632314429,0.03402415,117560.0,117550.0,0.24297696]
[1752632314766,0.03402364,117560.0,117550.0,0.29855286]
[1752632315433,0.04252986,117560.0,117550.0,0.29855286]
[1752632316254,0.04752986,117560.0,117550.0,0.29955286]
[1752632316464,0.04752986,117560.0,117550.0,0.24397696]
[1752632316678,0.005,117560.0,117550.0,0.46328724]
[1752632316898,0.01350571,117560.0,117550.0,0.46328724]
[1752632317102,0.01350564,117560.0,117550.0,0.46328724]
[1752632317509,0.01350564,117560.0,117550.0,0.41524686]
[1752632317668,0.01350564,117560.0,117550.0,0.54904686]
[1752632318112,0.005,117560.0,117550.0,0.54904686]
[1752632319409,0.01350564,117560.0,117550.0,0.54904686]
[1752632320147,0.005,117560.0,117550.0,0.8964271]
[1752632320344,0.005,117560.0,117550.0,0.54904686]
[1752632320581,0.01350564,117560.0,117550.0,0.54904686]
[1752632320913,0.005,117560.0,117550.0,0.54904686]
[1752632321526,0.01350571,117560.0,117550.0,0.54904686]
[1752632321672,0.005,117560.0,117550.0,0.54904686]
[1752632321882,0.01350571,117560.0,117550.0,0.54904686]
[1752632322677,0.01350564,117560.0,117550.0,0.54904686]
[1752632323397,0.02201142,117560.0,117550.0,0.54904686]
[1752632323604,0.01350564,117560.0,117550.0,0.54904686]
[1752632323794,0.02201135,117560.0,117550.0,0.54904686]
[1752632324020,0.005,117560.0,117550.0,0.54904686]
[1752632324661,0.005,117560.0,117550.0,0.8964271]
[1752632325269,0.02201164,117560.0,117550.0,0.8964271]
[1752632325484,0.03051764,117560.0,117550.0,0.8964271]
[1752632325693,0.03051771,117560.0,117550.0,0.53203392]
[1752632325916,0.03051771,117560.0,117550.0,0.54054043]
[1752632326138,0.2056936,117560.0,117550.0,0.00316]
[1752632326351,5.41366458,117560.0,117550.0,0.001]
[1752632326556,0.92374858,117560.0,117550.0,0.13452]
[1752632327007,0.57636834,117560.0,117550.0,0.13452]
[1752632327214,0.57636834,117560.0,117550.0,0.001]
[1752632327428,0.57636834,117560.0,117550.0,0.13456]
[1752632327429,0.66212796,117560.0,117550.0,0.13456]
[1752632327831,0.66212796,117560.0,117550.0,0.001]
[1752632328049,0.74763824,117560.0,117550.0,0.001]
[1752632328255,5.23755424,117560.0,117550.0,0.001]
[1752632328464,5.58493448,117560.0,117550.0,0.13448]
[1752632329084,5.58493448,117560.0,117550.0,0.001]
[1752632329934,0.17864723,117550.0,117540.0,0.0002]
[1752632330149,5.06556637,117550.0,117540.0,0.0002]
[1752632330360,5.15107665,117550.0,117540.0,0.0002]
[1752632330600,5.28447665,117550.0,117540.0,0.0002]
[1752632331631,5.27260375,117550.0,117540.0,0.0002]
[1752632332600,5.27460375,117550.0,117540.0,0.0002]
[1752632334522,5.61460375,117550.0,117540.0,0.0002]
[1752632335161,5.64015875,117550.0,117540.0,0.0002]
[1752632336000,5.63815875,117550.0,117540.0,0.0002]
[1752632336416,5.72491837,117550.0,117540.0,0.0002]
[1752632337033,1.23500237,117550.0,117540.0,0.0002]
[1752632337245,5.72491837,117550.0,117540.0,0.0002]
[1752632338005,5.37753813,117550.0,117540.0,0.0002]
[1752632338213,5.72491837,117550.0,117540.0,0.0002]
[1752632339338,5.73945922,117550.0,117540.0,0.0002]
[1752632340201,5.73845922,117550.0,117540.0,0.0002]
[1752632340399,5.39307898,117550.0,117540.0,0.0002]
[1752632340651,5.73845922,117550.0,117540.0,0.0002]
[1752632341149,5.73945922,117550.0,117540.0,0.0002]
[1752632343353,1.24954322,117550.0,117540.0,0.0002]
[1752632343553,5.73945922,117550.0,117540.0,0.0002]
[1752632344380,1.24854322,117550.0,117540.0,0.0002]
[1752632344624,5.73845922,117550.0,117540.0,0.0002]
[1752632344803,5.74045922,117550.0,117540.0,0.0002]
[1752632345366,1.25054322,117550.0,117540.0,0.0002]
[1752632345570,5.60705922,117550.0,117540.0,0.0002]
[1752632345771,5.74017922,117550.0,117540.0,0.0002]
[1752632346415,5.60705922,117550.0,117540.0,0.0002]
[1752632346616,5.29245851,117550.0,117540.0,0.0002]
[1752632346773,5.15936851,117550.0,117540.0,0.0002]
[1752632346983,5.61427375,117550.0,117540.0,0.0002]
[1752632347412,1.12435775,117550.0,117540.0,0.0002]
[1752632347619,5.61427375,117550.0,117540.0,0.0002]
[1752632347826,5.70003337,117550.0,117540.0,0.0002]
[1752632348178,5.69803337,117550.0,117540.0,0.0002]
[1752632348369,5.69903337,117550.0,117540.0,0.0002]
[1752632348580,5.70244037,117550.0,117540.0,0.0002]
[1752632351922,5.61668075,117550.0,117540.0,0.0002]
[1752632353340,1.12676475,117550.0,117540.0,0.0002]
[1752632353581,5.61668075,117550.0,117540.0,0.0002]
[1752632356203,5.6312216,117550.0,117540.0,0.0002]
[1752632356415,5.89552184,117550.0,117540.0,1e-08]
[1752632356610,6.11420146,117550.0,117540.0,1e-08]
[1752632356801,6.51420146,117550.0,117540.0,1e-08]
[1752632357234,5.76682122,117550.0,117540.0,1e-08]
[1752632357652,5.76582122,117550.0,117540.0,1e-08]
[1752632358052,5.76782122,117550.0,117540.0,1e-08]
[1752632360450,5.6321016,117550.0,117540.0,1e-08]
[1752632360954,1.1421856,117550.0,117540.0,1e-08]